Cogmind - Beta 13 @@@ ROGUE MODE // 2024.06.02 @ 15:14:05 Player: kikul Result: Destroyed by G-34 Mercenary with Small Laser Performance ------------- Evolutions (1) 500 Regions Visited (2) 400 Robots Destroyed (23) 115 Value Destroyed (474) 474 Prototype IDs (0) 0 Alien Tech Used (0) 0 Bonus (0) 0 TOTAL SCORE: 1489 Bonus ------- None Cogmind --------- Core Integrity 0/400 Matter 246/300 Energy 350/350 System Corruption 0% Temperature Cool (6) Movement Core (400) Ox7 Location -9/Materials Parts ------- > --- POWER (1) -------- (None) > --- PROPULSION (2) --- (None) > --- UTILITY (2) ------ Large Storage Unit High-capacity Battery > --- WEAPON (4) ------- (None) > --- INVENTORY (15) --- Light Ion Engine Aluminum Leg Aluminum Leg Aluminum Leg VTOL Module Heat Sink Improved Heat Sink Medium Storage Unit Large Storage Unit Peak State ------------ > --- POWER ------------ Light Ion Engine > --- PROPULSION ------- Aluminum Leg Aluminum Leg > --- UTILITY ---------- Improved Heat Sink Large Storage Unit > --- WEAPON ----------- Light Assault Rifle Light Assault Rifle Light Assault Rifle Light Assault Rifle > --- INVENTORY -------- Light Ion Engine Light Ion Engine Light Treads Aluminum Leg VTOL Module Heat Sink Medium Storage Unit Large Storage Unit High-capacity Battery [Rating: 12] Favorites ----------- Power Light Ion Engine Engine Light Ion Engine Propulsion Aluminum Leg Treads Light Treads Leg Aluminum Leg Utility Large Storage Unit Device Improved Heat Sink Storage Large Storage Unit Protection Light Armor Plating Weapon Light Assault Rifle Ballistic Gun Light Assault Rifle Build | -11 -10 -9 ------- Run | Yrd Mat Mat Slots Evolved 2 | . . 2 Power . | . . . Propulsion . | . . . Utility . | . . . Weapon 2 | . . 2 Parts Attached 19 | 5 4 10 Power 3 | . . 3 Engine 3 | . . 3 Core . | . . . Reactor . | . . . Propulsion 6 | 2 2 2 Treads 1 | . . 1 Leg 5 | 2 2 1 Wheel . | . . . Hover . | . . . Flight . | . . . Utility 5 | 1 2 2 Device 1 | . 1 . Storage 3 | 1 1 1 Processor . | . . . Hackware . | . . . Protection 1 | . . 1 Artifact . | . . . Weapon 5 | 2 . 3 Energy Gun . | . . . Energy Cannon . | . . . Ballistic Gun 5 | 2 . 3 Ballistic Cannon . | . . . Launcher . | . . . Special Weapon . | . . . Impact Weapon . | . . . Slashing Weapon . | . . . Piercing Weapon . | . . . Special Melee Weapon . | . . . Unidentified Prototypes . | . . . Parts Lost 9 | . . 9 Power 1 | . . 1 Propulsion 3 | . . 3 Utility 1 | . . 1 Weapon 4 | . . 4 Highest Loss Streak 9 | . . 9 To Critical Strikes . | . . . Average Slot Usage (%) 84 | . 78 89 Engine 5 | . . 10 Leg 23 | . 28 18 Device 8 | . 7 9 Storage 12 | . 14 11 Ballistic Gun 32 | . 28 37 Naked Turns . | . . . Heaviest Build 28 | 7 23 28 Greatest Support 20 | 20 20 20 Greatest Overweight (x) 2 | . 1 2 Average Overweight (x) . | . . 1 Largest Inventory Capacity 15 | 8 15 15 Average Capacity 12 | 7 11 15 Most Carried 14 | 6 10 14 Average Carried 8 | 4 8 9 Final Capacity 15 | 8 15 15 Final Carried 10 | 6 10 9 Class Distribution -------------------- 62% | Mutant 37% | Gunner Dominant Class ---------------- Mutant | -10/Materials Gunner | -9/Materials Resources | -11 -10 -9 ----------- Run | Yrd Mat Mat Matter Collected 530 | 302 74 154 Remotely . | . . . Salvage Created 763 | 167 131 465 Parts 53 | 3 11 39 Haulers Intercepted . | . . . Recyclers Shooed . | . . . Parts Field Recycled . | . . . Retrieved Matter . | . . . Parts Self-Destructed . | . . . Prevented . | . . . Kills | -11 -10 -9 ------- Run | Yrd Mat Mat Combat Hostiles Destroyed 16 | . 5 11 Guns 16 | . 5 11 Classes Destroyed 7 | 3 2 2 Worker 2 | 2 . . Tunneler 1 | 1 . . Recycler 1 | 1 . . Watcher 3 | . . 3 Swarmer 7 | . 3 4 Grunt 7 | . 2 5 Sentry 2 | . . 2 Best Kill Streak 10 | 4 2 10 Combat Bots Only 9 | . 2 9 Max Kills in Single Turn 2 | 1 1 2 Gunslinging 1 | . . 1 Exploded . | . . . Melee . | . . . Uniques/NPCs Destroyed . | . . . Combat | -11 -10 -9 -------- Run | Yrd Mat Mat Hostile Shots Fired 127 | . 25 102 Missed 27 | . 4 23 Damage Taken 1560 | . 225 1335 Core 458 | . 48 410 Absorbed by Shields . | . . . Core Remaining (%) 90 | 100 80 . Volleys Fired 89 | 26 17 46 Largest 4 | 2 2 4 Hottest 80 | 40 40 80 Shots Fired 237 | 52 34 151 Gun 237 | 52 34 151 Cannon . | . . . Launcher . | . . . Special . | . . . Kinetic 237 | 52 34 151 Thermal . | . . . Explosive . | . . . Electromagnetic . | . . . Robot Hit Streak 13 | 7 6 13 Robot Miss Streak 9 | 4 4 9 Penetration Max . | . . . Secondary Targets 4 | . . 4 Max Gunslinging Chain 2 | . . 2 Shots Hit Robots 136 | 31 19 86 Core Hits 59 | 12 10 37 Critical Kills 1 | . . 1 Critical Parts Destroyed . | . . . Critical Strikes 1 | . . 1 Destroy 1 | . . 1 Melee Attacks . | . . . Impact . | . . . Slashing . | . . . Piercing . | . . . Sneak Attacks . | . . . Combat Hostiles . | . . . Follow-up Attacks . | . . . Damage Inflicted 1163 | 271 153 739 Guns 1152 | 271 153 728 Cannons . | . . . Explosions . | . . . Melee . | . . . Ramming 11 | . . 11 Kinetic 1152 | 271 153 728 Thermal . | . . . Explosive . | . . . Electromagnetic . | . . . Impact . | . . . Slashing . | . . . Piercing . | . . . Highest Corruption . | . . . Average Corruption . | . . . Corruption Purged . | . . . Corruption Blocked . | . . . Overload Shots . | . . . Overflow Damage . | . . . Projectiles . | . . . Explosions . | . . . Melee . | . . . Knockbacks 1 | . . 1 Impact 1 | . . 1 Kinetic . | . . . Secondary . | . . . Self-Inflicted Damage . | . . . Shots . | . . . Rammed . | . . . Targets Rammed 3 | . . 3 Kicked 3 | . . 3 Crushed . | . . . Highest Temperature 39 | . 4 39 Average Temperature 8 | . 2 9 Received Heat Transfer 381 | . 96 285 Siege Activations . | . . . Robots Corrupted . | . . . Combat Hostiles . | . . . Parts Fried . | . . . Impact Corruptions . | . . . Robots Melted . | . . . Combat Hostiles . | . . . Parts Melted . | . . . Heat Transferred . | . . . Parts Sabotaged . | . . . Parts Stolen . | . . . Parts Stripped . | . . . Power Chain Reactions . | . . . Alert | -11 -10 -9 ------- Run | Yrd Mat Mat Peak Influence 399 | 20 223 399 Initial 93 | . 13 93 Average 160 | 7 115 268 Maximum Alert Level 1 | . 1 1 Low Security (%) 64 | 100 78 35 Level 1 35 | . 21 64 Level 2 . | . . . Level 3 . | . . . Level 4 . | . . . Level 5 . | . . . High Security . | . . . Max Security . | . . . Squads Dispatched 3 | . 1 2 Investigation 1 | . . 1 Extermination . | . . . Reinforcement 2 | . 1 1 Assault . | . . . Garrison . | . . . Intercept . | . . . Searches Triggered . | . . . Construction Impeded . | . . . Haulers Reinforced . | . . . Active Scanning Responses . | . . . Cargo Convoy Interrupts . | . . . Stealth | -11 -10 -9 --------- Run | Yrd Mat Mat Distress Signals 3 | . 1 2 Communications Jammed . | . . . Distress Signals . | . . . Times Spotted 31 | . 10 21 Peak Tracking Total 8 | . 4 8 Tactical Retreats 4 | . 3 1 Traps | -11 -10 -9 ------- Run | Yrd Mat Mat Traps Triggered 1 | . . 1 Indirectly . | . . . Trap Hack Attempts . | . . . Triggered . | . . . Disarmed . | . . . Reprogrammed . | . . . Reused . | . . . Traps Extracted . | . . . Installed . | . . . Triggered . | . . . Machines | -11 -10 -9 ---------- Run | Yrd Mat Mat Machines Disabled . | . . . Max in Single Turn . | . . . Machines Repaired . | . . . Machines Dismantled . | . . . Machines Sabotaged . | . . . Overloaded Fab Kills . | . . . Hacking | -11 -10 -9 --------- Run | Yrd Mat Mat Machines Accessed 2 | . 1 1 Terminals 2 | . 1 1 Fabricators . | . . . Repair Stations . | . . . Recycling Units . | . . . Scanalyzers . | . . . Garrison Access . | . . . Total Hacks 3 | . 1 2 Successful 1 | . . 1 Failed 2 | . 1 1 Catastrophic . | . . . Database Lockouts . | . . . Manual 3 | . 2 1 Terminals 3 | . 1 2 Fabricators . | . . . Repair Stations . | . . . Recycling Units . | . . . Scanalyzers . | . . . Garrison Access . | . . . Terminal Hacks 1 | . . 1 Record 1 | . . 1 Fabricator Hacks . | . . . Repair Station Hacks . | . . . Recycling Unit Hacks . | . . . Scanalyzer . | . . . Garrison Access Hacks . | . . . Unauthorized Hacks . | . . . Terminals . | . . . Fabricators . | . . . Repair Stations . | . . . Recycling Units . | . . . Scanalyzers . | . . . Garrison Access . | . . . Data Cores Recovered . | . . . Used . | . . . Hacking Detections 1 | . . 1 Full Trace Events . | . . . Feedback Events . | . . . Feedback Blocked . | . . . Robot Schematics Acquired . | . . . Robots Built . | . . . Authchips . | . . . Time . | . . . Total Robot Build Rating . | . . . Part Schematics Acquired . | . . . Parts Built . | . . . Authchips . | . . . Time . | . . . Total Part Build Rating . | . . . Parts Repaired . | . . . Time . | . . . Parts Recycled . | . . . Recycled Matter . | . . . Retrieved Matter . | . . . Retrieved Components . | . . . Parts Scanalyzed . | . . . Part Schematics Acquired . | . . . Parts Damaged . | . . . Bothacking | -11 -10 -9 ------------ Run | Yrd Mat Mat Used RIF Installer . | . . . Robots Hacked . | . . . Non-combat . | . . . Combat . | . . . Robot Hacks Applied . | . . . Relay Couplers Released . | . . . Fabnet Peak Effective % . | . . . Robots Rewired . | . . . Allies Hacked . | . . . Hacks Repelled . | . . . Allies | -11 -10 -9 -------- Run | Yrd Mat Mat Total Allies . | . . . Largest Group . | . . . Highest-Rated Group . | . . . Highest-Rated Ally . | . . . Total Orders . | . . . Ally Attacks . | . . . Total Damage . | . . . Kills . | . . . Allies Corrupted . | . . . Allies Melted . | . . . Intel | -11 -10 -9 ------- Run | Yrd Mat Mat Robot Analysis Total . | . . . Derelict Logs Recovered . | . . . Drone Launches . | . . . Drone Recoveries . | . . . Exploration | -11 -10 -9 ------------- Run | Yrd Mat Mat Turns Passed 945 | 171 379 395 Spaces Moved 393 | 78 200 115 Core 6 | 6 . . Treads . | . . . Legs 387 | 72 200 115 Wheels . | . . . Hover . | . . . Flight . | . . . Fastest Speed 50 | 50 120 190 Average Speed 153 | 114 147 191 Slowest Speed 260 | 120 190 260 Overloaded Moves . | . . . Propulsion Burnouts . | . . . Robots Hopped . | . . . Cave-ins Triggered . | . . . Exploration Rate (%) 17 | 6 33 13 Regions Visited 2 Branch Regions . Pre-discovered Areas . | . . . Known Exits Taken . | . . . Unknown Exits Taken 2 | 1 1 . Scrap Searched . | . . . Spaces Dug . | . . . Terrain Destroyed . | . . . Melee . | . . . Projectile . | . . . AOE . | . . . Terrain Rammed . | . . . Walls Destroyed . | . . . Machines Disabled . | . . . Actions | -11 -10 -9 --------- Run | Yrd Mat Mat Total 592 | 116 259 217 Wait 65 | . 30 35 Move 391 | 77 199 115 Hop . | . . . Pick Up 21 | 8 5 8 Fast Attach 4 | 3 1 . Attach 11 | 2 . 9 Detach . | . . . Swap 4 | . 3 1 Drop 4 | . 4 . Fire 89 | 26 17 46 Melee . | . . . Ram . | . . . Kick 3 | . . 3 Crush . | . . . Escape Stasis . | . . . Rewire . | . . . Trap . | . . . Miscellaneous . | . . . Route ------- -11/Scrapyard -10/Materials -9/Materials History --------- Turn | Location | Event 2 | -11/Scrapyard | Discovered new exit (range 16) 172 | -11/Scrapyard | Entered Materials 320 | -10/Materials | Build established: Mutant 492 | -10/Materials | Discovered new exit (range 4) 551 | -10/Materials | Entered another Materials area 551 | -9/Materials | Evolved 2 slots: Weapon x2 731 | -9/Materials | Destroyed 9 combat bots 840 | -9/Materials | Build established: Gunner 928 | -9/Materials | Core integrity fell below 50% 939 | -9/Materials | Core integrity fell below 20% 946 | -9/Materials | Destroyed by G-34 Mercenary with Small Laser Last Messages --------------- 00875_ Critical hit (Burn: +37). 00875_ Aluminum Leg destroyed. 00875_ Y-45 Defender destroyed. 00878_ Acquired 17 matter. 00883_ Acquired Lgt. Armor Plating. 00885_ Aluminum Leg destroyed. 00885_ Lgt. Assault Rifle destroyed. 00887_ Lgt. Assault Rifle severed. 00892_ Lgt. Ion Engine destroyed. 00894_ R-06 Scavenger collects Heat Sink. 00897_ R-06 Scavenger collects Lgt. Treads. 00903_ M-13 Machinist repairs M-13 Machinist. 00904_ Lgt. Assault Rifle destroyed. 00908_ Acquired Lgt. Assault Rifle. 00910_ Lgt. Armor Plating destroyed. 00922_ Ion Engine severed. 00924_ Aluminum Leg destroyed. 00927_ Lgt. Treads severed. 00932_ Lgt. Assault Rifle destroyed. 00940_ Lgt. Ion Engine severed. Map ----- +----------------------------------------------------+ | ???????????# #???????? #????????????????????????? | | ???????????# #??????? #?????????????????????????? | | ???????????# #??????% ##### ????????????????? | | ???????????# #######% = ????????????????? | | ???????????# ! % =* = T ?????????????????? | | ???????????# %[= % ????????????????? | | ???????????# ###+###### ????????????????? | | ???????????# # #??????????????????????? | | ???????????# #"" #??????????????????????? | | ???????????# #"T #??????????????????????? | | ???????????# = #"" #??????????????????????? | | ???????????# ! ! # #??????????????????????? | | ???????????# = # #??????????????????????? | | ???????????#% # """ ##?????????????????????? | | ??????????## # """ #?????????????????????? | | ?????????##% %# """ ##?????????????????????? | | ????+ + #??????????????????????? | | ????####### ##### r #??????????????????????? | | ??????????##+##???#######a#??????????????????????? | | ????????????????????????#k#??????????????????????? | | ????????????????????????#m#??????????????????????? | | ????????????????????????#m#??????????????????????? | | ????????????????????????#Y#??????????????????????? | | ????????????????????????#g#??????????????????????? | | ????????????????????????#l#??????????????????????? | | ????????????????????????#@#??????????????????????? | | ????????????????????????#g#??????????????????????? | | ????????????????????????/u#??????????????????????? | | ????????????????????????# #??????????????????????? | | ????????????????????????# #??????????????????????? | | ???????????????????????? #??????????????????????? | | ????????????????????????#+#??????????????????????? | | ?????????????????????????????????????????????????? | | ?????????????????????????????????????????????????? | | ?????????????????????????????????????????????????? | | ?????????????????????????????????????????????????? | | ?????????????????????????????????????????????????? | | ?????????????????????????????????????????????????? | | ?????????????????????????????????????????????????? | | ?????????????????????????????????????????????????? | | ?????????????????????????????????????????????????? | | ?????????????????????????????????????????????????? | | ?????????????????????????????????????????????????? | | ?????????????????????????????????????????????????? | | ?????????????????????????????????????????????????? | | ?????????????????????????????????????????????????? | | ?????????????????????????????????????????????????? | | ?????????????????????????????????????????????????? | | ?????????????????????????????????????????????????? | | ?????????????????????????????????????????????????? | +----------------------------------------------------+ Best States ------------- Heat Dissipation 42 Energy Generation 10 Energy Capacity 375 Matter Stores 300 Matter Capacity 300 Sight Range 16 Terrain Scan Density 10 Armor Coverage 150 Evasion (%) 55 Item Schematics ----------------- None Robot Schematics ------------------ None Fabricated ------------ Nothing Alien Tech Used ----------------- None Achievements -------------- None Challenges ------------ None Game ------ Seed MultinovaMultinovaBroadsword Manual? 0 Play Time 00:12:42 Cumulative 11.9 hours Start 2024.06.02 @ 15:02:44 End 2024.06.02 @ 15:14:05 Sessions 1 Manual Loads 0 Difficulty Rogue Special Mode None Game No. 21 Rogue 21 Adventurer 0 Explorer 0 Win Type - Total 0 Types 0/0/0/0/0/0/0/0/0 Lore% 2 Gallery% 13 Achievement% 10 Wizard Run 0 Options --------- Layout 0 ASCII 0 Keyboard 0 Movement Mouse Keybinds 0 Fullscreen 1 Font 24/Smallcaps Map View 76x50 Zoom Use 0% Tactical HUD 1 Map Filters NONE Filters NONE Steam 1 RUN: 376d8301-8bbb-444b-9f34-fafe06ec1461